bitfinex/quotes_SOLUSD_20230120
["timestamp","ask_amount","ask_price","bid_price","bid_amount"]
[1674254336728,15.612742,25.654,25.603,48.88332811]
[1674254336729,142.1325,25.644,25.603,48.88332811]
[1674254336919,29.28,25.624,25.596,53.48504874]
[1674254337130,29.28,25.624,25.553,92.55930436]
[1674254337457,29.28,25.624,25.541,266.13305381]
[1674254337458,115.41838,25.623,25.577,48.70277929]
[1674254337669,31.81588,25.622,25.554,2.4999]
[1674254337881,2.53588,25.621,25.554,2.4999]
[1674254338078,29.28,25.62,25.566,57.35904874]
[1674254338420,2.53588,25.619,25.555,21.47511756]
[1674254338600,30.24,25.618,25.563,30.67115869]
[1674254338811,22.53588,25.617,25.563,30.67115869]
[1674254339140,32.77588,25.616,25.523,32.15315869]
[1674254339330,22.53588,25.615,25.534,32.15315869]
[1674254339542,22.53588,25.615,25.535,2.50176]
[1674254339543,49.78588,25.614,25.535,2.50176]
[1674254339765,2.53588,25.612,25.522,18.99994699]
[1674254340067,4.71466855,25.608,25.522,18.99994699]
[1674254340277,2.33,25.603,25.522,18.99994699]
[1674254340507,120.0,25.593,25.522,18.99994699]
[1674254340714,143.2909,25.602,25.522,18.99994699]
[1674254340715,2.53588,25.591,25.522,18.99994699]
[1674254340921,118.4,25.589,25.522,18.99994699]
[1674254341130,120.93588,25.587,25.522,18.99994699]
[1674254341454,120.93588,25.585,25.522,18.99994699]
[1674254341656,120.93588,25.583,25.522,18.99994699]
[1674254341878,120.93588,25.581,25.522,18.99994699]
[1674254342195,2.53588,25.579,25.522,18.99994699]
[1674254342390,29.33,25.578,25.522,18.99994699]
[1674254342586,138.89588,25.577,25.522,18.99994699]
[1674254342800,120.93588,25.575,25.522,18.99994699]
[1674254343009,120.93588,25.573,25.522,18.99994699]
[1674254343214,30.29,25.574,25.522,18.99994699]
[1674254343215,120.93588,25.571,25.522,18.99994699]
[1674254343446,120.93588,25.569,25.522,18.99994699]
[1674254343766,120.93588,25.567,25.434,2.872]
[1674254343960,49.34,25.568,25.43,2.872]
[1674254343961,120.93588,25.565,25.43,2.872]
[1674254344171,4.81096895,25.559,25.43,2.872]
[1674254344381,35.87081002,25.504,25.419,2.873]
[1674254344586,43.268053,25.502,25.419,2.873]
[1674254344799,49.42,25.501,25.43,2.872]
[1674254345015,17.0,25.5,25.43,2.872]
[1674254345217,52.91588,25.499,25.43,2.872]
[1674254345427,19.53588,25.498,25.43,2.872]
[1674254345644,52.91588,25.497,25.43,2.872]
[1674254345859,19.53588,25.496,25.43,2.872]
[1674254346078,31.95588,25.495,25.43,2.872]
[1674254346389,40.49588,25.494,25.394,2.876]
[1674254346591,31.96588,25.493,25.394,65.14894353]
[1674254346791,20.49588,25.492,25.395,3.692]
[1674254347004,31.96588,25.491,25.396,109.4714]
[1674254347319,20.49588,25.49,25.43,3.687]
[1674254347530,20.49588,25.49,25.391,43.268053]
[1674254347531,31.96588,25.489,25.397,3.692]
[1674254347750,31.96588,25.489,25.425,21.47511756]
[1674254347751,2.53588,25.487,25.425,21.47511756]
[1674254348075,30.39,25.486,25.394,65.14894353]
[1674254348272,22.53588,25.485,25.43,7.47511756]
[1674254348486,49.93588,25.484,25.392,3.693]
[1674254348684,22.53588,25.483,25.402,20.0]
[1674254348893,48.97588,25.482,25.423,21.47511756]
[1674254349105,48.97588,25.482,25.424,21.47511756]
[1674254349106,2.53588,25.481,25.424,21.47511756]
[1674254349319,30.4,25.48,25.424,21.47511756]
[1674254349529,39.53588,25.479,25.424,21.47511756]
[1674254349754,31.97588,25.478,25.424,21.47511756]
[1674254350074,40.49588,25.477,25.424,21.47511756]
[1674254350285,31.98588,25.476,25.424,21.47511756]
[1674254350474,2.53588,25.475,25.43,21.47511756]
[1674254350689,29.45,25.474,25.431,20.0]
[1674254350899,53.18576951,25.485,25.431,20.0]
[1674254351124,2.53588,25.484,25.431,20.0]
[1674254351338,29.44,25.483,25.476,3.53273669]
[1674254351544,2.53588,25.482,25.43,20.53572034]
[1674254351735,29.44,25.481,25.43,20.53572034]
[1674254351940,2.53588,25.48,25.394,3.723]
[1674254352155,30.4,25.479,25.43,3.717]
[1674254352492,30.4,25.479,25.424,3.718]
[1674254352493,2.53588,25.478,25.424,3.718]
[1674254352696,2.53588,25.478,25.393,111.413]
[1674254352697,29.44,25.477,25.426,20.53572034]
[1674254352884,29.44,25.477,25.402,20.0]
[1674254352885,96.84634351,25.477,25.43,3.687]
[1674254353096,69.94222351,25.476,25.43,3.687]
[1674254353308,86.16191497,25.476,25.43,23.687]
[1674254353647,39.97546097,25.475,25.43,23.687]
[1674254353843,39.97546097,25.475,25.431,17.0]
[1674254354176,23.75576951,25.482,25.432,23.686]
[1674254354379,29.42,25.494,25.433,20.4718]
[1674254354693,108.1673,25.494,25.434,26.1977]
[1674254354880,29.42,25.499,25.435,20.4716]
[1674254355095,29.4,25.511,25.436,6.1975]
[1674254355326,29.4,25.511,25.437,22.5114]
[1674254355537,108.1673,25.51,25.438,24.1563]
[1674254355735,108.1673,25.51,25.439,140.91121]
[1674254355949,108.1673,25.51,25.44,23.46911]
[1674254356149,108.1673,25.51,25.441,22.51101]
[1674254356356,108.1673,25.51,25.443,118.4]
[1674254356563,108.1673,25.51,25.444,43.46771]
[1674254356777,108.1673,25.51,25.445,2.51061]
[1674254357091,29.39,25.523,25.446,122.357]
[1674254357306,108.1673,25.522,25.448,120.91032]
[1674254357528,108.1673,25.522,25.45,120.91012]
[1674254357856,108.1673,25.522,25.452,118.4]
[1674254358044,108.1673,25.522,25.453,161.86582]
[1674254358261,108.1673,25.522,25.455,120.90963]
[1674254358470,118.0174,25.524,25.457,120.90943]
[1674254358805,118.0174,25.524,25.459,120.90923]
[1674254359101,118.0174,25.524,25.461,120.90904]
[1674254359293,118.0174,25.524,25.463,2.50884]
[1674254359503,118.0174,25.524,25.464,3.593]
[1674254359717,110.4237,25.536,25.466,2.50854]
[1674254359944,110.4237,25.548,25.467,121.992]
[1674254360158,110.4237,25.548,25.469,120.90825]
[1674254360374,110.4237,25.548,25.471,120.90805]
[1674254360592,32.37586031,25.547,25.473,120.90785]
[1674254360784,29.36,25.546,25.475,120.90766]
[1674254360991,29.36,25.547,25.477,120.90746]
[1674254361305,29.36,25.547,25.478,42.13836]
[1674254361520,134.17946951,25.548,25.479,20.46726]
[1674254361725,29.36,25.547,25.481,2.50707]
[1674254361936,134.16830492,25.548,25.481,2.50707]
[1674254361937,97.9237,25.548,25.482,3.348]
[1674254362142,97.9237,25.548,25.484,2.50677]
[1674254362377,97.9237,25.548,25.485,121.748]
[1674254362586,97.9237,25.548,25.487,2.50648]
[1674254362775,43.268053,25.555,25.488,121.748]
[1674254363104,43.268053,25.555,25.49,120.90618]
[1674254363325,43.268053,25.555,25.492,120.90598]
[1674254363635,43.268053,25.555,25.491,40.347]
[1674254363636,43.268053,25.555,25.494,120.90579]
[1674254363844,43.268053,25.555,25.496,120.90559]
[1674254364051,43.268053,25.555,25.498,120.9054]
[1674254364261,43.268053,25.555,25.5,120.9052]
[1674254364475,43.268053,25.555,25.502,2.505]
[1674254364684,43.268053,25.555,25.503,1.98]
[1674254364900,43.268053,25.555,25.505,2.50471]
[1674254365228,29.36,25.554,25.505,2.50471]
[1674254365411,43.268053,25.555,25.505,2.50471]
[1674254365736,29.36,25.554,25.505,2.50471]
[1674254365949,53.11576951,25.554,25.48,1.981]
[1674254366154,76.71492394,25.553,25.481,2.50707]
[1674254366474,99.02124921,25.552,25.481,2.50707]
[1674254366686,141.89588,25.551,25.481,2.50707]
[1674254366886,118.4,25.549,25.481,2.50707]
[1674254367098,305.63778,25.548,25.451,1.984]
[1674254367310,2.53588,25.546,25.452,2.50992]
[1674254367528,118.4,25.544,25.452,2.50992]
[1674254367842,30.33,25.545,25.452,2.50992]
[1674254367843,120.93588,25.542,25.452,2.50992]
[1674254368043,116.06626637,25.543,25.452,2.50992]
[1674254368044,120.93588,25.54,25.452,2.50992]
[1674254368263,120.93588,25.538,25.452,2.50992]
[1674254368452,120.93588,25.536,25.452,2.50992]
[1674254368662,50.33,25.537,25.452,2.50992]
[1674254368663,120.93588,25.534,25.452,2.50992]
[1674254369000,120.93588,25.532,25.452,2.50992]
[1674254369205,118.4,25.53,25.452,2.50992]
[1674254369422,52.87588,25.529,25.452,2.50992]
[1674254369635,2.53588,25.528,25.452,2.50992]
[1674254369941,118.4,25.526,25.452,2.50992]
[1674254370153,51.92588,25.525,25.452,2.50992]
[1674254370364,2.53588,25.524,25.452,2.50992]
[1674254370558,29.39,25.523,25.452,2.50992]
[1674254370769,22.53588,25.522,25.452,2.50992]
[1674254370978,31.92588,25.521,25.452,2.50992]
[1674254371183,2.53588,25.52,25.444,67.17792]
[1674254371407,29.4,25.519,25.453,2.50982]
[1674254371608,2.53588,25.518,25.454,0.96]
[1674254371825,29.4,25.517,25.454,0.96]
[1674254372037,2.53588,25.516,25.454,0.96]
[1674254372251,29.4,25.515,25.442,118.4]
[1674254372474,22.53588,25.514,25.43,121.889]
[1674254372678,31.93588,25.513,25.438,118.4]
[1674254372878,19.53588,25.512,25.439,2.51121]
[1674254373206,51.93588,25.511,25.439,2.51121]
[1674254373407,19.53588,25.51,25.439,2.51121]
[1674254373626,2.53588,25.508,25.437,44.08350004]
[1674254373822,29.41,25.507,25.432,3.489]
[1674254374040,19.53588,25.506,25.438,23.39959694]
[1674254374241,31.94588,25.505,25.438,2.5113]
[1674254374448,19.53588,25.504,25.434,118.4]
[1674254374658,31.94588,25.503,25.433,23.39959694]
[1674254374868,19.53588,25.502,25.432,3.489]
[1674254375188,51.95588,25.501,25.432,3.489]
[1674254375526,20.49588,25.5,25.432,3.489]
[1674254375735,51.95588,25.499,25.432,3.489]
[1674254375946,3.49588,25.498,25.432,3.489]
[1674254376152,31.95588,25.497,25.433,23.39959694]
[1674254376364,22.53588,25.496,25.432,26.88859694]
[1674254376581,22.53588,25.496,25.429,43.268053]
[1674254376582,31.95588,25.495,25.429,43.268053]
[1674254376897,22.53588,25.494,25.429,43.268053]
[1674254377097,31.96588,25.493,25.429,43.268053]
[1674254377311,22.53588,25.492,25.429,43.268053]
[1674254377533,48.96588,25.491,25.429,43.268053]
[1674254377726,23.49588,25.49,25.429,43.268053]
[1674254377929,48.96588,25.489,25.429,43.268053]
[1674254378264,23.49588,25.488,25.429,43.268053]
[1674254378458,48.96588,25.487,25.429,43.268053]
[1674254378663,23.49588,25.486,25.429,43.268053]
[1674254378869,48.96588,25.485,25.429,43.268053]
[1674254379088,22.53588,25.484,25.429,43.268053]
[1674254379313,31.97588,25.483,25.429,43.268053]
[1674254379523,22.53588,25.482,25.429,43.268053]
[1674254379725,31.97588,25.481,25.429,43.268053]
[1674254379924,22.53588,25.48,25.429,43.268053]
[1674254380139,31.97588,25.479,25.429,43.268053]
[1674254380459,22.53588,25.478,25.429,43.268053]
[1674254380672,31.97588,25.477,25.429,43.268053]
[1674254380993,20.49588,25.476,25.429,43.268053]
[1674254381195,51.98588,25.475,25.429,43.268053]
[1674254381409,19.53588,25.474,25.429,43.268053]
[1674254381629,73.20576951,25.475,25.429,43.268053]
[1674254381630,51.98588,25.473,25.429,43.268053]
[1674254381848,2.53588,25.472,25.429,43.268053]
[1674254382031,29.45,25.471,25.429,43.268053]
[1674254382245,22.53588,25.47,25.429,38.268053]
[1674254382457,31.98588,25.469,25.429,38.268053]
[1674254382672,22.53588,25.468,25.429,38.268053]
[1674254382885,31.99588,25.467,25.429,38.268053]
[1674254383077,20.0,25.466,25.429,38.268053]
[1674254383289,29.46,25.465,25.43,22.39959694]
[1674254383500,29.46,25.465,25.429,38.268053]
[1674254383709,20.0,25.464,25.429,38.268053]
[1674254383934,29.46,25.463,25.429,38.268053]
[1674254384130,20.0,25.462,25.43,0.96]
[1674254384345,29.46,25.461,25.43,0.96]
[1674254384550,20.0,25.46,25.43,17.96]
[1674254384996,20.0,25.46,25.429,38.268053]
[1674254385307,20.0,25.474,25.429,38.268053]
[1674254385510,31.98588,25.473,25.429,38.268053]
[1674254385716,22.53588,25.472,25.429,38.268053]
[1674254385928,31.98588,25.471,25.429,38.268053]
[1674254386132,2.53588,25.47,25.429,38.268053]
[1674254386341,29.45,25.469,25.429,38.268053]
[1674254386571,22.53588,25.468,25.429,38.268053]
[1674254386780,31.99588,25.467,25.429,38.268053]
[1674254386963,22.53588,25.466,25.429,38.268053]
[1674254387180,31.99588,25.465,25.429,38.268053]
[1674254387388,20.0,25.464,25.429,38.268053]
[1674254387723,22.53588,25.464,25.43,43.33249714]
[1674254388042,20.0,25.474,25.431,23.33249714]
[1674254388229,29.45,25.473,25.431,23.33249714]
[1674254388438,29.45,25.475,25.431,23.33249714]
[1674254388654,29.45,25.475,25.432,20.0]
[1674254388865,29.43,25.487,25.433,119.572]
[1674254389178,109.9962,25.488,25.434,93.1503077]
[1674254389390,109.9962,25.488,25.435,1.172]
[1674254389604,109.9962,25.488,25.436,0.96]
[1674254389818,109.9962,25.488,25.437,1.171]
[1674254390040,29.43,25.487,25.438,0.96]
[1674254390228,31.96588,25.487,25.438,20.96]
[1674254390440,31.96588,25.487,25.439,17.0]
[1674254390658,109.9962,25.488,25.44,22.131]
[1674254390869,109.9962,25.488,25.44,45.46703452]
[1674254391083,109.9962,25.488,25.441,17.0]
[1674254391298,109.9962,25.488,25.442,20.96]
[1674254391499,109.9962,25.488,25.443,17.0]
[1674254391711,109.9962,25.488,25.444,20.96]
[1674254391949,109.9962,25.488,25.445,17.0]
[1674254392129,109.9962,25.488,25.446,20.96]
[1674254392338,109.9962,25.488,25.447,17.0]
[1674254392550,109.9962,25.488,25.448,20.96]
[1674254392875,29.42,25.499,25.449,17.0]
[1674254393078,2.53588,25.498,25.45,20.96]
[1674254393293,2.53588,25.498,25.451,17.0]
[1674254393497,29.4,25.511,25.452,20.96]
[1674254393704,29.4,25.511,25.453,17.0]
[1674254393915,29.4,25.511,25.455,118.4]
[1674254394119,29.4,25.511,25.454,20.96]
[1674254394120,29.4,25.511,25.457,118.4]
[1674254394365,110.2097,25.512,25.459,118.4]
[1674254394548,110.2097,25.512,25.461,118.4]
[1674254394757,118.8302,25.536,25.463,118.4]
[1674254394758,29.38,25.535,25.463,118.4]
[1674254395089,118.2596,25.524,25.465,118.4]
[1674254395279,118.2596,25.524,25.467,118.4]
[1674254395488,118.2596,25.524,25.469,118.4]
[1674254395719,118.2596,25.524,25.471,118.4]
[1674254395913,5.0,25.524,25.472,158.86795]
[1674254396126,5.0,25.524,25.473,2.50785]
[1674254396329,5.0,25.524,25.478,118.4]
[1674254396556,5.0,25.524,25.48,118.4]
[1674254396794,5.0,25.524,25.482,118.4]
[1674254396961,5.0,25.524,25.484,117.9]
[1674254397165,5.0,25.524,25.486,117.9]
[1674254397376,118.8302,25.548,25.488,117.9]
[1674254397590,20.0,25.547,25.49,117.9]
[1674254397907,29.36,25.546,25.491,20.0]
[1674254398235,23.75576951,25.546,25.49,20.0]
[1674254398553,31.90588,25.545,25.491,23.33603452]
[1674254398756,2.53588,25.544,25.492,20.0]
[1674254399167,2.53588,25.544,25.493,23.33603452]
[1674254399375,2.53588,25.544,25.494,20.96]
[1674254399598,2.53588,25.544,25.457,65.07113625]
[1674254399599,23.75576951,25.543,25.421,65.61341678]
[1674254399802,23.75576951,25.543,25.414,65.23950455]
[1674254399803,31.90588,25.542,25.441,182.61899763]
[1674254400014,2.53588,25.541,25.474,23.33603452]
[1674254400226,30.33,25.54,25.443,2.51081]
[1674254400551,2.53588,25.538,25.445,118.4]
[1674254400762,30.33,25.537,25.455,118.4]
[1674254400974,2.53588,25.535,25.455,118.4]
[1674254401158,30.34,25.534,25.455,118.4]
[1674254401377,118.4,25.532,25.456,23.33603452]
[1674254401692,39.53588,25.533,25.438,118.4]
[1674254401693,2.53588,25.53,25.438,118.4]
[1674254402019,118.4,25.528,25.451,23.33603452]
[1674254402227,120.93588,25.526,25.43,110.7982]
[1674254402549,120.93588,25.524,25.431,118.4]
[1674254402742,120.93588,25.522,25.431,141.73603452]
[1674254402954,120.93588,25.522,25.43,110.7982]
[1674254402955,120.93588,25.52,25.434,41.81]
[1674254403279,120.93588,25.518,25.433,118.4]
[1674254403475,49.4,25.519,25.433,118.4]
[1674254403476,120.93588,25.516,25.435,23.33603452]
[1674254403686,120.93588,25.514,25.435,23.33603452]
[1674254403899,120.93588,25.512,25.435,23.33603452]
[1674254404111,120.93588,25.51,25.435,23.33603452]
[1674254404326,120.93588,25.508,25.429,43.268053]
[1674254404525,50.37,25.509,25.429,43.268053]
[1674254404526,120.93588,25.506,25.43,23.33603452]
[1674254404732,120.93588,25.504,25.43,23.33603452]
[1674254405049,120.93588,25.502,25.43,23.33603452]
[1674254405256,120.93588,25.5,25.43,46.67206904]
[1674254405468,120.93588,25.498,25.43,23.33603452]
[1674254405699,120.93588,25.496,25.43,23.33603452]
[1674254405899,120.93588,25.494,25.43,23.33603452]
[1674254406113,120.93588,25.492,25.43,23.33603452]
[1674254406435,120.93588,25.49,25.43,23.33603452]
[1674254406642,120.93588,25.488,25.43,23.33603452]
[1674254406835,120.93588,25.486,25.43,23.33603452]
[1674254407053,118.4,25.484,25.43,23.33603452]
[1674254407373,118.4,25.482,25.43,23.33603452]
[1674254407585,188.33588,25.481,25.43,23.33603452]
[1674254407790,118.4,25.479,25.429,43.268053]
[1674254408114,22.53588,25.48,25.429,43.268053]
[1674254408115,118.4,25.477,25.429,43.268053]
[1674254408330,69.93588,25.478,25.429,43.268053]
[1674254408331,118.4,25.475,25.429,43.268053]
[1674254408530,150.38588,25.474,25.429,43.268053]
[1674254408743,39.53588,25.473,25.429,43.268053]
[1674254409063,2.53588,25.471,25.429,43.268053]
[1674254409384,29.45,25.47,25.429,43.268053]
[1674254409592,2.53588,25.469,25.429,43.268053]
[1674254409896,29.45,25.468,25.429,43.268053]
[1674254410120,39.53588,25.467,25.429,43.268053]
[1674254410309,31.99588,25.466,25.429,41.768053]
[1674254410517,39.53588,25.465,25.429,41.768053]
[1674254410744,31.99588,25.464,25.429,41.768053]
[1674254410942,22.53588,25.463,25.429,41.768053]
[1674254411154,48.22646037,25.47,25.43,148.05087464]
[1674254411369,114.2417,25.497,25.431,4.031]
[1674254411567,114.2417,25.497,25.432,116.9119]
[1674254411777,114.2417,25.497,25.433,19.479]
[1674254411989,114.2417,25.497,25.434,114.4]
[1674254412192,114.2417,25.497,25.436,114.4]
[1674254412402,29.42,25.496,25.437,1.519]
[1674254412630,29.42,25.496,25.438,0.96]
[1674254412840,29.42,25.496,25.438,24.29603452]
[1674254413053,20.0,25.487,25.439,60.33603452]
[1674254413260,20.0,25.487,25.44,0.96]
[1674254413459,20.0,25.487,25.44,24.29603452]
[1674254413669,20.0,25.487,25.441,43.33603452]
[1674254413881,20.0,25.487,25.441,23.33603452]
[1674254414197,2.53588,25.486,25.442,43.33603452]
[1674254414407,2.53588,25.486,25.442,23.33603452]
[1674254414627,2.53588,25.486,25.443,23.33603452]
[1674254414945,23.75576951,25.485,25.443,20.0]
[1674254415156,39.53588,25.484,25.439,20.0]
[1674254415344,2.53588,25.483,25.436,1.519]
[1674254415568,59.50884711,25.483,25.436,1.519]
[1674254415788,59.50884711,25.483,25.431,1.013]
[1674254415789,43.75576951,25.482,25.431,1.013]
[1674254416103,26.29164951,25.481,25.431,1.013]
[1674254416308,2.53588,25.48,25.431,1.013]
[1674254416500,43.29164951,25.48,25.43,20.0]
[1674254416716,73.19576951,25.479,25.4,1.014]
[1674254416917,2.53588,25.478,25.4,1.014]
[1674254417134,29.44,25.477,25.4,1.014]
[1674254417338,19.53588,25.476,25.4,1.014]
[1674254417549,51.98588,25.475,25.398,1.014]
[1674254417768,2.53588,25.474,25.398,1.014]
[1674254417993,29.45,25.473,25.398,1.014]
[1674254418189,22.53588,25.472,25.398,1.014]
[1674254418401,31.98588,25.471,25.398,1.014]
[1674254418611,2.53588,25.47,25.398,1.014]
[1674254418931,29.45,25.469,25.398,1.014]
[1674254419140,22.53588,25.468,25.429,39.268053]
[1674254419568,2.53588,25.467,25.429,39.268053]
[1674254420082,2.53588,25.467,25.43,0.96]
[1674254420296,2.53588,25.467,25.429,39.268053]
[1674254420513,26.29164951,25.467,25.429,39.268053]
[1674254421028,17.0,25.466,25.429,39.268053]
[1674254421244,22.53588,25.465,25.429,39.268053]
[1674254421446,48.99588,25.464,25.429,39.268053]
[1674254421771,139.01007919,25.52,25.429,39.268053]
[1674254421772,118.4,25.479,25.429,39.268053]
[1674254421986,71.78363409,25.463,25.429,39.268053]
[1674254422184,48.99588,25.462,25.429,39.268053]
[1674254422396,3.49588,25.461,25.429,39.268053]
[1674254422603,2.53588,25.46,25.429,39.268053]
[1674254422809,0.96,25.459,25.429,39.268053]
[1674254423033,2.53588,25.458,25.429,39.268053]
[1674254423255,0.96,25.457,25.429,39.268053]
[1674254423445,32.00588,25.456,25.429,39.268053]
[1674254423658,23.49588,25.455,25.392,1.333]
[1674254423889,2.53588,25.453,25.392,1.333]
[1674254424087,118.4,25.451,25.392,1.333]
[1674254424412,118.4,25.449,25.392,1.333]
[1674254424606,120.93588,25.447,25.37,29.57]
[1674254424818,120.93588,25.445,25.37,29.57]
[1674254425034,66.48,25.446,25.37,29.57]
[1674254425035,118.4,25.443,25.37,29.57]
[1674254425238,52.97588,25.444,25.37,29.57]
[1674254425239,171.37588,25.442,25.37,29.57]
[1674254425457,19.53588,25.441,25.37,29.57]
[1674254425673,120.93588,25.439,25.354,29.59]
[1674254426001,120.93588,25.437,25.391,39.268053]
[1674254426175,118.4,25.435,25.391,39.268053]
[1674254426387,188.38588,25.434,25.391,39.268053]
[1674254426617,2.53588,25.432,25.391,39.268053]
[1674254426826,118.4,25.43,25.391,39.268053]
[1674254427125,49.99588,25.429,25.391,39.268053]
[1674254427348,2.53588,25.428,25.391,39.268053]
[1674254427566,0.96,25.427,25.391,39.268053]
[1674254427772,2.53588,25.426,25.391,39.268053]
[1674254428104,0.96,25.425,25.391,39.268053]
[1674254428297,2.53588,25.424,25.391,39.268053]
[1674254428723,26.29164951,25.424,25.391,39.268053]
[1674254428927,23.75576951,25.423,25.391,39.268053]
[1674254429122,2.53588,25.422,25.391,39.268053]
[1674254429538,23.75576951,25.421,25.391,39.268053]
[1674254429860,2.53588,25.42,25.391,39.268053]
[1674254430065,51.96774158,25.42,25.391,39.268053]
[1674254430287,78.9834006,25.419,25.391,39.268053]
[1674254430505,20.49588,25.418,25.391,39.268053]
[1674254430710,2.53588,25.417,25.391,39.268053]
[1674254431027,0.96,25.416,25.391,39.268053]
[1674254431344,26.29164951,25.415,25.391,37.768053]
[1674254431534,20.49588,25.414,25.391,37.768053]
[1674254431744,2.03588,25.413,25.391,37.768053]
[1674254431965,25.79164951,25.413,25.391,37.768053]
[1674254432178,2.03588,25.413,25.391,37.768053]
[1674254432415,2.03588,25.413,25.391,37.268053]
[1674254432622,23.75576951,25.412,25.391,37.268053]
[1674254432933,19.53588,25.411,25.391,37.268053]
[1674254433149,2.53588,25.41,25.391,37.268053]
[1674254433341,144.69164951,25.41,25.391,37.268053]
[1674254433545,77.17429776,25.409,25.391,37.268053]
[1674254433752,2.53588,25.408,25.391,37.268053]
[1674254433977,0.96,25.407,25.391,37.268053]
[1674254434195,2.53588,25.406,25.391,37.268053]
[1674254434401,0.96,25.405,25.391,37.268053]
[1674254434618,2.53588,25.404,25.391,37.268053]
[1674254434807,63.12245759,25.404,25.391,37.268053]
[1674254435020,40.75576951,25.403,25.391,37.268053]
[1674254435236,2.53588,25.402,25.391,37.268053]
[1674254435451,47.22723908,25.402,25.391,37.268053]
[1674254435658,47.22723908,25.402,25.391,35.768053]
[1674254435659,17.0,25.401,25.391,35.768053]
[1674254435855,81.52216716,25.401,25.391,35.768053]
[1674254436070,44.69135908,25.4,25.391,35.768053]
[1674254436276,2.53588,25.402,25.391,35.268053]
[1674254436486,23.75576951,25.41,25.391,35.268053]
[1674254436697,2.53588,25.409,25.391,35.268053]
[1674254437116,56.65624425,25.408,25.391,35.268053]
[1674254437329,9.1513,25.4,25.391,35.268053]
[1674254437548,17.0,25.399,25.391,35.268053]
[1674254437757,19.53588,25.399,25.391,35.268053]
[1674254438384,2.53588,25.399,25.391,35.268053]
[1674254438799,9.1513,25.4,25.391,35.268053]
[1674254440182,9.1513,25.4,25.392,0.96]
[1674254440609,9.1513,25.4,25.392,0.46]
[1674254440795,9.1513,25.4,25.391,35.268053]
[1674254441007,9.1513,25.4,25.392,17.0]
[1674254441770,9.1513,25.4,25.391,35.268053]
[1674254442498,9.1513,25.4,25.391,33.268053]
[1674254443143,9.1513,25.4,25.286,139.23814878]
[1674254443319,9.1513,25.4,14.837,250.0]
[1674254443320,52.1096,25.366,25.344,40.81]
[1674254443530,52.1096,25.366,25.345,2.52052]
[1674254443749,52.1096,25.366,25.346,29.6]
[1674254443961,41.1096,25.366,25.347,3.48032]
[1674254444174,41.1096,25.366,25.348,32.11022]
[1674254444388,41.1096,25.366,25.349,2.98012]
[1674254444585,41.1096,25.366,25.35,32.11002]
[1674254444795,41.1096,25.366,25.351,2.51992]
[1674254445008,41.1096,25.366,25.352,29.59]
[1674254445221,41.1096,25.366,25.354,41.81]
[1674254445444,41.1096,25.366,25.355,29.59]
[1674254445445,84.377653,25.366,25.355,29.59]
[1674254445639,84.377653,25.366,25.356,20.0]
[1674254445852,9.1513,25.4,25.357,2.229]
[1674254446069,9.1513,25.4,25.358,2.51923]
[1674254446278,9.1513,25.4,25.359,2.229]
[1674254447219,9.1513,25.4,25.359,4.74813]
[1674254447430,9.1513,25.4,25.36,2.51903]